[Event "Titled Tuesday Blitz October 5 2021"]
[White "Bilych, Olexiy"]
[Black "Brunner, Nicolas"]
[WhiteFideId "14156504"]
[BlackFideId "620246"]
[WhiteElo "2248"]
[BlackElo "2372"]
[Result "1/2-1/2"]
[Round "03"]
[TimeControl "180+1"]
[Date "2021.10.05"]
[WhiteClock "0:00:16"]
[BlackClock "0:00:11"]

1. d4 {[%clk 0:03:00]}  d5 {[%clk 0:02:59]} 2. c4 {[%clk 0:03:00]}  e6 {[%clk 0:02:58]} 3. Nf3 {[%clk 0:03:00]}  Be7 {[%clk 0:02:57]} 4. g3 {[%clk 0:03:00]}  Nf6 {[%clk 0:02:57]} 5. Bg2 {[%clk 0:03:00]}  O-O {[%clk 0:02:56]} 6. O-O {[%clk 0:03:01]}  dxc4 {[%clk 0:02:57]} 7. Qc2 {[%clk 0:03:00]}  a6 {[%clk 0:02:57]} 8. a4 {[%clk 0:03:01]}  Bd7 {[%clk 0:02:56]} 9. Bg5 {[%clk 0:03:01]}  Bc6 {[%clk 0:02:55]} 10. Bxf6 {[%clk 0:03:00]}  Bxf6 {[%clk 0:02:55]} 11. Rd1 {[%clk 0:03:00]}  a5 {[%clk 0:02:47]} 12. e4 {[%clk 0:02:57]}  Na6 {[%clk 0:02:46]} 13. Nbd2 {[%clk 0:02:43]}  Nb4 {[%clk 0:02:43]} 14. Qxc4 {[%clk 0:02:43]}  b6 {[%clk 0:02:33]} 15. h4 {[%clk 0:02:20]}  Bb7 {[%clk 0:02:32]} 16. Rac1 {[%clk 0:02:03]}  Rc8 {[%clk 0:02:31]} 17. Qb3 {[%clk 0:01:42]}  g6 {[%clk 0:02:03]} 18. e5 {[%clk 0:01:26]}  Be7 {[%clk 0:01:49]} 19. Nc4 {[%clk 0:01:20]}  Bd5 {[%clk 0:01:44]} 20. Ne1 {[%clk 0:01:11]}  c5 {[%clk 0:01:33]} 21. Bxd5 {[%clk 0:01:09]}  exd5 {[%clk 0:01:33]} 22. Nd2 {[%clk 0:00:45]}  cxd4 {[%clk 0:01:21]} 23. Rxc8 {[%clk 0:00:45]}  Qxc8 {[%clk 0:01:20]} 24. Ndf3 {[%clk 0:00:43]}  Bc5 {[%clk 0:01:06]} 25. Nd3 {[%clk 0:00:33]}  Nxd3 {[%clk 0:01:01]} 26. Qxd3 {[%clk 0:00:34]}  Re8 {[%clk 0:00:58]} 27. Qd2 {[%clk 0:00:21]}  Qg4 {[%clk 0:00:51]} 28. Qf4 {[%clk 0:00:22]}  Qxf4 {[%clk 0:00:27]} 29. gxf4 {[%clk 0:00:23]}  Rc8 {[%clk 0:00:26]} 30. Nxd4 {[%clk 0:00:22]}  Bxd4 {[%clk 0:00:25]} 31. Rxd4 {[%clk 0:00:23]}  Rc2 {[%clk 0:00:25]} 32. Rxd5 {[%clk 0:00:22]}  Rxb2 {[%clk 0:00:25]} 33. Kg2 {[%clk 0:00:20]}  Rb4 {[%clk 0:00:25]} 34. Rd8+ {[%clk 0:00:19]}  Kg7 {[%clk 0:00:24]} 35. Rd7 {[%clk 0:00:19]}  Kg8 {[%clk 0:00:14]} 36. Kg3 {[%clk 0:00:18]}  Rxa4 {[%clk 0:00:14]} 37. Kg4 {[%clk 0:00:19]}  h6 {[%clk 0:00:13]} 38. h5 {[%clk 0:00:18]}  gxh5+ {[%clk 0:00:12]} 39. Kf5 {[%clk 0:00:18]}  h4 {[%clk 0:00:10]} 40. Rd8+ {[%clk 0:00:18]}  Kg7 {[%clk 0:00:11]} 41. Rd7 {[%clk 0:00:19]}  Kg8 {[%clk 0:00:11]} 42. Rd8+ {[%clk 0:00:19]}  Kg7 {[%clk 0:00:11]} 43. Rd7 {[%clk 0:00:16]}  Kg8 {[%clk 0:00:11]} 1/2-1/2


[Site "https://www.chess.com"]

[Event "Titled Tuesday Blitz October 5 2021"]
[White "Bordi, Kevin"]
[Black "Aditya Mittal"]
[WhiteFideId "621862"]
[BlackFideId "35042025"]
[WhiteElo "2820"]
[BlackElo "2245"]
[Result "1-0"]
[Round "03"]
[TimeControl "180+1"]
[Date "2021.10.05"]
[WhiteClock "0:00:14"]
[BlackClock "0:00:05"]

1. e4 {[%clk 0:03:00]}  c5 {[%clk 0:02:59]} 2. Nf3 {[%clk 0:03:01]}  Nc6 {[%clk 0:02:58]} 3. b4 {[%clk 0:02:59]}  Nxb4 {[%clk 0:02:52]} 4. c3 {[%clk 0:02:59]}  Nc6 {[%clk 0:02:49]} 5. d4 {[%clk 0:02:59]}  d6 {[%clk 0:02:39]} 6. d5 {[%clk 0:02:12]}  Ne5 {[%clk 0:02:17]} 7. Nxe5 {[%clk 0:02:10]}  dxe5 {[%clk 0:02:18]} 8. f4 {[%clk 0:02:00]}  exf4 {[%clk 0:02:12]} 9. Bxf4 {[%clk 0:02:01]}  e5 {[%clk 0:02:00]} 10. Bxe5 {[%clk 0:01:31]}  Qh4+ {[%clk 0:01:57]} 11. Bg3 {[%clk 0:01:19]}  Qxe4+ {[%clk 0:01:57]} 12. Be2 {[%clk 0:01:12]}  Bg4 {[%clk 0:01:50]} 13. Nd2 {[%clk 0:01:00]}  Qxe2+ {[%clk 0:01:43]} 14. Qxe2+ {[%clk 0:01:01]}  Bxe2 {[%clk 0:01:42]} 15. Kxe2 {[%clk 0:01:02]}  Nf6 {[%clk 0:01:36]} 16. c4 {[%clk 0:00:59]}  O-O-O {[%clk 0:01:37]} 17. Kd3 {[%clk 0:00:49]}  b5 {[%clk 0:01:28]} 18. Rab1 {[%clk 0:00:41]}  a6 {[%clk 0:00:56]} 19. Kc2 {[%clk 0:00:25]}  Bd6 {[%clk 0:00:43]} 20. Bh4 {[%clk 0:00:20]}  b4 {[%clk 0:00:18]} 21. Rbe1 {[%clk 0:00:20]}  Rde8 {[%clk 0:00:17]} 22. Bxf6 {[%clk 0:00:18]}  gxf6 {[%clk 0:00:17]} 23. g3 {[%clk 0:00:19]}  Re5 {[%clk 0:00:13]} 24. Rhf1 {[%clk 0:00:17]}  Rhe8 {[%clk 0:00:13]} 25. Rxe5 {[%clk 0:00:17]}  Bxe5 {[%clk 0:00:14]} 26. Ne4 {[%clk 0:00:16]}  Bd4 {[%clk 0:00:11]} 27. Nd6+ {[%clk 0:00:15]}  Kd7 {[%clk 0:00:09]} 28. Nxe8 {[%clk 0:00:16]}  Kxe8 {[%clk 0:00:10]} 29. Rf5 {[%clk 0:00:15]}  a5 {[%clk 0:00:08]} 30. Rh5 {[%clk 0:00:15]}  a4 {[%clk 0:00:07]} 31. Rxh7 {[%clk 0:00:15]}  f5 {[%clk 0:00:06]} 32. Rh6 {[%clk 0:00:14]}  f6 {[%clk 0:00:05]} 33. Rh7 {[%clk 0:00:14]} 1-0


[Site "https://www.chess.com"]

[Event "Titled Tuesday Blitz October 5 2021"]
[White "Bykov, Egor"]
[Black "Fajdetic, Hrvoje"]
[WhiteFideId "34115290"]
[BlackFideId "14501945"]
[WhiteElo "2221"]
[BlackElo "2140"]
[Result "1-0"]
[Round "03"]
[TimeControl "180+1"]
[Date "2021.10.05"]
[WhiteClock "0:00:11"]
[BlackClock "0:00:05"]

1. d4 {[%clk 0:02:54]}  e6 {[%clk 0:02:59]} 2. c4 {[%clk 0:02:53]}  f5 {[%clk 0:02:59]} 3. Nf3 {[%clk 0:02:53]}  Nf6 {[%clk 0:02:59]} 4. g3 {[%clk 0:02:54]}  Be7 {[%clk 0:02:58]} 5. Bg2 {[%clk 0:02:54]}  O-O {[%clk 0:02:58]} 6. O-O {[%clk 0:02:55]}  d6 {[%clk 0:02:58]} 7. Nc3 {[%clk 0:02:51]}  Ne4 {[%clk 0:02:59]} 8. Qc2 {[%clk 0:02:45]}  Nxc3 {[%clk 0:02:58]} 9. bxc3 {[%clk 0:02:43]}  Bf6 {[%clk 0:02:58]} 10. Rd1 {[%clk 0:02:38]}  Qe8 {[%clk 0:02:57]} 11. c5 {[%clk 0:02:32]}  e5 {[%clk 0:02:28]} 12. cxd6 {[%clk 0:02:30]}  cxd6 {[%clk 0:02:27]} 13. Ba3 {[%clk 0:02:26]}  e4 {[%clk 0:02:25]} 14. Ne1 {[%clk 0:02:24]}  Be7 {[%clk 0:02:19]} 15. Qb3+ {[%clk 0:02:21]}  Qf7 {[%clk 0:02:15]} 16. Nc2 {[%clk 0:02:16]}  Nc6 {[%clk 0:02:05]} 17. Ne3 {[%clk 0:02:08]}  Na5 {[%clk 0:01:56]} 18. Qxf7+ {[%clk 0:01:58]}  Rxf7 {[%clk 0:01:51]} 19. f3 {[%clk 0:01:50]}  exf3 {[%clk 0:01:35]} 20. exf3 {[%clk 0:01:50]}  Bd7 {[%clk 0:01:24]} 21. f4 {[%clk 0:01:33]}  Bc6 {[%clk 0:01:18]} 22. d5 {[%clk 0:01:28]}  Bb5 {[%clk 0:01:12]} 23. Rab1 {[%clk 0:01:26]}  Ba6 {[%clk 0:00:56]} 24. Rdc1 {[%clk 0:00:33]}  Rc8 {[%clk 0:00:53]} 25. Bf1 {[%clk 0:00:31]}  Bxf1 {[%clk 0:00:51]} 26. Kxf1 {[%clk 0:00:32]}  b6 {[%clk 0:00:48]} 27. Ke2 {[%clk 0:00:29]}  Bf8 {[%clk 0:00:42]} 28. Kd3 {[%clk 0:00:29]}  g6 {[%clk 0:00:42]} 29. Bb4 {[%clk 0:00:27]}  Nb7 {[%clk 0:00:41]} 30. Nc2 {[%clk 0:00:25]}  Nc5+ {[%clk 0:00:36]} 31. Bxc5 {[%clk 0:00:25]}  Rxc5 {[%clk 0:00:36]} 32. c4 {[%clk 0:00:22]}  Bg7 {[%clk 0:00:31]} 33. Nb4 {[%clk 0:00:21]}  Re7 {[%clk 0:00:21]} 34. Re1 {[%clk 0:00:19]}  Rxe1 {[%clk 0:00:16]} 35. Rxe1 {[%clk 0:00:20]}  a5 {[%clk 0:00:14]} 36. Nc6 {[%clk 0:00:18]}  b5 {[%clk 0:00:12]} 37. Nxa5 {[%clk 0:00:10]}  bxc4+ {[%clk 0:00:11]} 38. Nxc4 {[%clk 0:00:10]}  Rxd5+ {[%clk 0:00:11]} 39. Kc2 {[%clk 0:00:11]}  Rc5 {[%clk 0:00:11]} 40. Kb3 {[%clk 0:00:11]}  d5 {[%clk 0:00:10]} 41. Re8+ {[%clk 0:00:10]}  Kf7 {[%clk 0:00:10]} 42. Nd6+ {[%clk 0:00:11]}  Kf6 {[%clk 0:00:09]} 43. a4 {[%clk 0:00:09]}  Rc6 {[%clk 0:00:08]} 44. Nb5 {[%clk 0:00:09]}  Kf7 {[%clk 0:00:06]} 45. Rd8 {[%clk 0:00:09]}  d4 {[%clk 0:00:06]} 46. a5 {[%clk 0:00:08]}  Rc5 {[%clk 0:00:06]} 47. Kb4 {[%clk 0:00:07]}  Rc6 {[%clk 0:00:04]} 48. Nxd4 {[%clk 0:00:06]}  Bxd4 {[%clk 0:00:04]} 49. Rxd4 {[%clk 0:00:07]}  Ke6 {[%clk 0:00:05]} 50. Kb5 {[%clk 0:00:07]}  Rc8 {[%clk 0:00:05]} 51. a6 {[%clk 0:00:07]}  Rb8+ {[%clk 0:00:05]} 52. Kc6 {[%clk 0:00:07]}  g5 {[%clk 0:00:05]} 53. Kc7 {[%clk 0:00:07]}  Ra8 {[%clk 0:00:05]} 54. Kb7 {[%clk 0:00:07]}  Re8 {[%clk 0:00:05]} 55. a7 {[%clk 0:00:08]}  Re7+ {[%clk 0:00:05]} 56. Kb6 {[%clk 0:00:08]}  Re8 {[%clk 0:00:06]} 57. fxg5 {[%clk 0:00:08]}  Ke5 {[%clk 0:00:05]} 58. Rc4 {[%clk 0:00:09]}  Re6+ {[%clk 0:00:05]} 59. Rc6 {[%clk 0:00:09]}  Re8 {[%clk 0:00:05]} 60. Kb7 {[%clk 0:00:09]}  Re7+ {[%clk 0:00:05]} 61. Rc7 {[%clk 0:00:10]}  Re8 {[%clk 0:00:06]} 62. Rc8 {[%clk 0:00:10]}  Re7+ {[%clk 0:00:06]} 63. Kb6 {[%clk 0:00:10]}  Re6+ {[%clk 0:00:06]} 64. Kb5 {[%clk 0:00:11]}  Re7 {[%clk 0:00:05]} 65. a8=Q {[%clk 0:00:11]} 1-0


[Site "https://www.chess.com"]

[Event "Titled Tuesday Blitz October 5 2021"]
[White "Demidov, Mikhail"]
[Black "Pastar, Slaven"]
[WhiteFideId "4197143"]
[BlackFideId "14402718"]
[WhiteElo "2527"]
[BlackElo "2198"]
[Result "0-1"]
[Round "03"]
[TimeControl "180+1"]
[Date "2021.10.05"]
[WhiteClock "0:00:38"]
[BlackClock "0:00:08"]

1. Nf3 {[%clk 0:03:00]}  b6 {[%clk 0:03:00]} 2. g3 {[%clk 0:03:01]}  Bb7 {[%clk 0:03:01]} 3. Bg2 {[%clk 0:03:01]}  g6 {[%clk 0:03:01]} 4. h4 {[%clk 0:03:00]}  h6 {[%clk 0:02:59]} 5. a4 {[%clk 0:03:00]}  Bg7 {[%clk 0:02:56]} 6. a5 {[%clk 0:03:01]}  c5 {[%clk 0:02:55]} 7. c4 {[%clk 0:03:00]}  bxa5 {[%clk 0:02:49]} 8. Nc3 {[%clk 0:02:57]}  Nf6 {[%clk 0:02:46]} 9. d3 {[%clk 0:02:57]}  Nc6 {[%clk 0:02:42]} 10. Bd2 {[%clk 0:02:57]}  Rb8 {[%clk 0:02:38]} 11. Qc1 {[%clk 0:02:56]}  Nd4 {[%clk 0:02:33]} 12. Ra3 {[%clk 0:02:48]}  Bxf3 {[%clk 0:02:13]} 13. exf3 {[%clk 0:02:43]}  Nb3 {[%clk 0:02:01]} 14. Qc2 {[%clk 0:02:42]}  Nxd2 {[%clk 0:02:01]} 15. Qxd2 {[%clk 0:02:43]}  Qb6 {[%clk 0:02:01]} 16. Ra2 {[%clk 0:02:37]}  d6 {[%clk 0:01:53]} 17. O-O {[%clk 0:02:37]}  O-O {[%clk 0:01:52]} 18. f4 {[%clk 0:02:37]}  Qb4 {[%clk 0:01:39]} 19. Rfa1 {[%clk 0:02:34]}  h5 {[%clk 0:01:27]} 20. Qc1 {[%clk 0:02:28]}  e6 {[%clk 0:01:16]} 21. Bf3 {[%clk 0:02:26]}  Rfd8 {[%clk 0:01:08]} 22. Kg2 {[%clk 0:02:25]}  d5 {[%clk 0:01:05]} 23. cxd5 {[%clk 0:02:21]}  exd5 {[%clk 0:01:05]} 24. Rxa5 {[%clk 0:02:19]}  Qxb2 {[%clk 0:01:03]} 25. Rxc5 {[%clk 0:02:14]}  Ng4 {[%clk 0:00:57]} 26. Bxg4 {[%clk 0:02:09]}  hxg4 {[%clk 0:00:55]} 27. Qxb2 {[%clk 0:01:23]}  Rxb2 {[%clk 0:00:56]} 28. Rxd5 {[%clk 0:01:21]}  Rxd5 {[%clk 0:00:25]} 29. Nxd5 {[%clk 0:01:22]}  Rxf2+ {[%clk 0:00:25]} 30. Kxf2 {[%clk 0:01:23]}  Bxa1 {[%clk 0:00:25]} 31. f5 {[%clk 0:01:23]}  gxf5 {[%clk 0:00:23]} 32. Ne7+ {[%clk 0:01:22]}  Kg7 {[%clk 0:00:20]} 33. Nxf5+ {[%clk 0:01:23]}  Kg6 {[%clk 0:00:19]} 34. Ne3 {[%clk 0:01:20]}  f5 {[%clk 0:00:20]} 35. Nc4 {[%clk 0:01:14]}  Bc3 {[%clk 0:00:16]} 36. Ke3 {[%clk 0:01:09]}  a5 {[%clk 0:00:16]} 37. d4 {[%clk 0:01:04]}  a4 {[%clk 0:00:16]} 38. d5 {[%clk 0:01:04]}  Be1 {[%clk 0:00:12]} 39. Kf4 {[%clk 0:00:58]}  Bb4 {[%clk 0:00:10]} 40. d6 {[%clk 0:00:52]}  Bxd6+ {[%clk 0:00:09]} 41. Nxd6 {[%clk 0:00:46]}  a3 {[%clk 0:00:09]} 42. Nxf5 {[%clk 0:00:39]}  a2 {[%clk 0:00:09]} 43. Ne3 {[%clk 0:00:37]}  a1=Q {[%clk 0:00:09]} 44. Nxg4 {[%clk 0:00:37]}  Qd4+ {[%clk 0:00:09]} 45. Kf3 {[%clk 0:00:38]}  Qd5+ {[%clk 0:00:09]} 46. Kf4 {[%clk 0:00:38]}  Qf5+ {[%clk 0:00:08]} 0-1


[Site "https://www.chess.com"]

[Event "Titled Tuesday Blitz October 5 2021"]
[White "Dolzhykova, Kateryna"]
[Black "Khoroshev, Nikita"]
[WhiteFideId "14113414"]
[BlackFideId "14200287"]
[WhiteElo "2213"]
[BlackElo "2376"]
[Result "0-1"]
[Round "03"]
[TimeControl "180+1"]
[Date "2021.10.05"]
[WhiteClock "0:00:07"]
[BlackClock "0:00:09"]

1. Nf3 {[%clk 0:03:00]}  Nf6 {[%clk 0:02:56]} 2. g3 {[%clk 0:02:59]}  d5 {[%clk 0:02:54]} 3. Bg2 {[%clk 0:02:58]}  c5 {[%clk 0:02:55]} 4. O-O {[%clk 0:02:56]}  Nc6 {[%clk 0:02:56]} 5. d4 {[%clk 0:02:56]}  c4 {[%clk 0:02:53]} 6. b3 {[%clk 0:02:45]}  Bf5 {[%clk 0:02:45]} 7. bxc4 {[%clk 0:02:41]}  dxc4 {[%clk 0:02:46]} 8. c3 {[%clk 0:02:41]}  e6 {[%clk 0:02:34]} 9. Nbd2 {[%clk 0:02:33]}  Nd5 {[%clk 0:02:28]} 10. Bb2 {[%clk 0:02:26]}  Nb6 {[%clk 0:02:25]} 11. e4 {[%clk 0:02:15]}  Bg6 {[%clk 0:02:25]} 12. Nh4 {[%clk 0:02:15]}  Be7 {[%clk 0:02:21]} 13. Nxg6 {[%clk 0:02:15]}  hxg6 {[%clk 0:02:22]} 14. d5 {[%clk 0:02:12]}  Ne5 {[%clk 0:02:12]} 15. Rb1 {[%clk 0:02:01]}  O-O {[%clk 0:02:01]} 16. Qe2 {[%clk 0:01:50]}  Rc8 {[%clk 0:01:46]} 17. Ba1 {[%clk 0:01:33]}  Re8 {[%clk 0:01:42]} 18. Kh1 {[%clk 0:01:32]}  exd5 {[%clk 0:01:36]} 19. exd5 {[%clk 0:01:28]}  Bc5 {[%clk 0:01:36]} 20. Ne4 {[%clk 0:01:25]}  Nd3 {[%clk 0:01:32]} 21. Qc2 {[%clk 0:01:19]}  Nxd5 {[%clk 0:01:08]} 22. Rbd1 {[%clk 0:01:03]}  Bb6 {[%clk 0:01:01]} 23. Rxd3 {[%clk 0:00:49]}  cxd3 {[%clk 0:01:02]} 24. Qxd3 {[%clk 0:00:49]}  Nf6 {[%clk 0:00:43]} 25. Nxf6+ {[%clk 0:00:48]}  gxf6 {[%clk 0:00:37]} 26. Qf3 {[%clk 0:00:44]}  Rc4 {[%clk 0:00:33]} 27. Rd1 {[%clk 0:00:39]}  Qe7 {[%clk 0:00:30]} 28. Qxb7 {[%clk 0:00:14]}  Qxb7 {[%clk 0:00:25]} 29. Bxb7 {[%clk 0:00:05]}  Bxf2 {[%clk 0:00:25]} 30. Bd5 {[%clk 0:00:05]}  Rc7 {[%clk 0:00:12]} 31. c4 {[%clk 0:00:06]}  Kg7 {[%clk 0:00:12]} 32. Kg2 {[%clk 0:00:06]}  Re1 {[%clk 0:00:07]} 33. Rxe1 {[%clk 0:00:06]}  Bxe1 {[%clk 0:00:08]} 34. Bd4 {[%clk 0:00:06]}  Bb4 {[%clk 0:00:08]} 35. a4 {[%clk 0:00:06]}  Bc5 {[%clk 0:00:09]} 36. Bc3 {[%clk 0:00:06]}  Bd6 {[%clk 0:00:07]} 37. g4 {[%clk 0:00:06]}  Be5 {[%clk 0:00:07]} 38. Bd2 {[%clk 0:00:06]}  Rc8 {[%clk 0:00:06]} 39. Be3 {[%clk 0:00:06]}  Rb8 {[%clk 0:00:07]} 40. Bxa7 {[%clk 0:00:05]}  Rb2+ {[%clk 0:00:08]} 41. Kf3 {[%clk 0:00:05]}  Ra2 {[%clk 0:00:09]} 42. Bc6 {[%clk 0:00:05]}  Ra3+ {[%clk 0:00:08]} 43. Ke4 {[%clk 0:00:05]}  Bxh2 {[%clk 0:00:09]} 44. Bb5 {[%clk 0:00:05]}  Be5 {[%clk 0:00:09]} 45. c5 {[%clk 0:00:05]}  Ra1 {[%clk 0:00:07]} 46. c6 {[%clk 0:00:04]}  Re1+ {[%clk 0:00:08]} 47. Kd5 {[%clk 0:00:04]}  Rd1+ {[%clk 0:00:08]} 48. Kc4 {[%clk 0:00:04]}  Bc7 {[%clk 0:00:08]} 49. Bc5 {[%clk 0:00:03]}  f5 {[%clk 0:00:08]} 50. gxf5 {[%clk 0:00:02]}  gxf5 {[%clk 0:00:09]} 51. a5 {[%clk 0:00:03]}  Bxa5 {[%clk 0:00:09]} 52. Bd4+ {[%clk 0:00:03]}  Kg6 {[%clk 0:00:09]} 53. Be5 {[%clk 0:00:04]}  Rc1+ {[%clk 0:00:07]} 54. Kd5 {[%clk 0:00:03]}  Kg5 {[%clk 0:00:05]} 55. Bc4 {[%clk 0:00:04]}  f4 {[%clk 0:00:04]} 56. c7 {[%clk 0:00:04]}  Bxc7 {[%clk 0:00:05]} 57. Bxc7 {[%clk 0:00:05]}  f3 {[%clk 0:00:06]} 58. Kd4 {[%clk 0:00:05]}  Kg4 {[%clk 0:00:06]} 59. Bd5 {[%clk 0:00:05]}  Rd1+ {[%clk 0:00:07]} 60. Ke4 {[%clk 0:00:05]}  f2 {[%clk 0:00:07]} 61. Bc4 {[%clk 0:00:05]}  Rc1 {[%clk 0:00:07]} 62. Kd4 {[%clk 0:00:04]}  Rxc4+ {[%clk 0:00:07]} 63. Kxc4 {[%clk 0:00:05]}  f1=Q+ {[%clk 0:00:08]} 64. Kc5 {[%clk 0:00:05]}  Qf5+ {[%clk 0:00:09]} 65. Kd6 {[%clk 0:00:06]}  Qe6+ {[%clk 0:00:09]} 66. Kc5 {[%clk 0:00:06]}  f5 {[%clk 0:00:10]} 67. Bd6 {[%clk 0:00:06]}  Qe4 {[%clk 0:00:10]} 68. Bf4 {[%clk 0:00:07]}  Kxf4 {[%clk 0:00:09]} 0-1


[Site "https://www.chess.com"]

[Event "Titled Tuesday Blitz October 5 2021"]
[White "Dounis, Alexandros"]
[Black "Rustemov, Alexander"]
[WhiteFideId "4213238"]
[BlackFideId "4119002"]
[WhiteElo "2195"]
[BlackElo "2795"]
[Result "0-1"]
[Round "03"]
[TimeControl "180+1"]
[Date "2021.10.05"]
[WhiteClock "0:01:35"]
[BlackClock "0:02:04"]

1. Nf3 {[%clk 0:03:00]}  d5 {[%clk 0:02:59]} 2. g3 {[%clk 0:03:01]}  Nf6 {[%clk 0:03:00]} 3. Bg2 {[%clk 0:03:01]}  c6 {[%clk 0:03:00]} 4. O-O {[%clk 0:03:01]}  Bf5 {[%clk 0:03:01]} 5. d3 {[%clk 0:03:01]}  e6 {[%clk 0:03:01]} 6. c4 {[%clk 0:03:01]}  dxc4 {[%clk 0:03:00]} 7. dxc4 {[%clk 0:03:02]}  Qxd1 {[%clk 0:03:00]} 8. Rxd1 {[%clk 0:03:03]}  Bc2 {[%clk 0:03:00]} 9. Rd2 {[%clk 0:03:02]}  Bg6 {[%clk 0:02:59]} 10. Nc3 {[%clk 0:03:02]}  Bb4 {[%clk 0:02:59]} 11. Ne5 {[%clk 0:02:52]}  Bxc3 {[%clk 0:02:57]} 12. bxc3 {[%clk 0:02:52]}  Nbd7 {[%clk 0:02:56]} 13. Nxg6 {[%clk 0:02:48]}  hxg6 {[%clk 0:02:56]} 14. Rb1 {[%clk 0:02:45]}  O-O-O {[%clk 0:02:55]} 15. Ba3 {[%clk 0:02:39]}  Nb6 {[%clk 0:02:51]} 16. Rxd8+ {[%clk 0:02:32]}  Rxd8 {[%clk 0:02:50]} 17. Bc5 {[%clk 0:02:27]}  Kc7 {[%clk 0:02:44]} 18. Bd4 {[%clk 0:02:09]}  Nxc4 {[%clk 0:02:37]} 19. e4 {[%clk 0:02:06]}  b6 {[%clk 0:02:27]} 20. e5 {[%clk 0:01:53]}  Nd5 {[%clk 0:02:22]} 21. Bf1 {[%clk 0:01:50]}  Nd2 {[%clk 0:02:21]} 22. Rc1 {[%clk 0:01:46]}  c5 {[%clk 0:02:15]} 23. c4 {[%clk 0:01:40]}  Nf3+ {[%clk 0:02:07]} 24. Kg2 {[%clk 0:01:39]}  Nxd4 {[%clk 0:02:07]} 25. cxd5 {[%clk 0:01:40]}  Rxd5 {[%clk 0:02:07]} 26. a4 {[%clk 0:01:36]}  Rxe5 {[%clk 0:02:06]} 27. a5 {[%clk 0:01:35]}  b5 {[%clk 0:02:04]} 0-1


[Site "https://www.chess.com"]

[Event "Titled Tuesday Blitz October 5 2021"]
[White "Fernandez Hernandez, Arturo A."]
[Black "Katz, Alexander"]
[WhiteFideId "3509230"]
[BlackFideId "2039796"]
[WhiteElo "2400"]
[BlackElo "2371"]
[Result "0-1"]
[Round "03"]
[TimeControl "180+1"]
[Date "2021.10.05"]
[WhiteClock "0:00:04"]
[BlackClock "0:00:21"]

1. Nf3 {[%clk 0:03:00]}  Nf6 {[%clk 0:02:57]} 2. c4 {[%clk 0:02:59]}  e6 {[%clk 0:02:55]} 3. g3 {[%clk 0:02:58]}  d5 {[%clk 0:02:54]} 4. Bg2 {[%clk 0:02:58]}  dxc4 {[%clk 0:02:55]} 5. Qc2 {[%clk 0:02:48]}  c6 {[%clk 0:02:48]} 6. Ne5 {[%clk 0:02:41]}  Nbd7 {[%clk 0:02:09]} 7. Nxc4 {[%clk 0:02:41]}  Nb6 {[%clk 0:02:09]} 8. b3 {[%clk 0:02:33]}  Nxc4 {[%clk 0:02:08]} 9. bxc4 {[%clk 0:02:33]}  Bc5 {[%clk 0:02:07]} 10. e3 {[%clk 0:02:29]}  O-O {[%clk 0:02:08]} 11. Bb2 {[%clk 0:02:25]}  Qe7 {[%clk 0:02:07]} 12. d4 {[%clk 0:02:20]}  Bb4+ {[%clk 0:02:07]} 13. Nd2 {[%clk 0:02:17]}  c5 {[%clk 0:02:03]} 14. O-O {[%clk 0:02:14]}  Rd8 {[%clk 0:01:55]} 15. Nb3 {[%clk 0:02:00]}  cxd4 {[%clk 0:01:47]} 16. exd4 {[%clk 0:02:01]}  Rb8 {[%clk 0:01:41]} 17. c5 {[%clk 0:01:53]}  b6 {[%clk 0:01:32]} 18. a3 {[%clk 0:01:48]}  Ba5 {[%clk 0:01:32]} 19. Nxa5 {[%clk 0:00:50]}  bxa5 {[%clk 0:01:33]} 20. Rab1 {[%clk 0:00:48]}  Ba6 {[%clk 0:01:33]} 21. Rfc1 {[%clk 0:00:46]}  Nd5 {[%clk 0:01:30]} 22. Bxd5 {[%clk 0:00:45]}  exd5 {[%clk 0:01:29]} 23. Bc3 {[%clk 0:00:45]}  Re8 {[%clk 0:01:08]} 24. Re1 {[%clk 0:00:39]}  Qd7 {[%clk 0:01:06]} 25. Rxb8 {[%clk 0:00:36]}  Rxb8 {[%clk 0:01:05]} 26. Bxa5 {[%clk 0:00:34]}  Bc4 {[%clk 0:01:05]} 27. Qc3 {[%clk 0:00:30]}  h5 {[%clk 0:01:03]} 28. Qe3 {[%clk 0:00:28]}  h4 {[%clk 0:00:59]} 29. Qf4 {[%clk 0:00:25]}  Rb5 {[%clk 0:00:55]} 30. Bd2 {[%clk 0:00:19]}  hxg3 {[%clk 0:00:55]} 31. hxg3 {[%clk 0:00:19]}  Rb3 {[%clk 0:00:54]} 32. Bc1 {[%clk 0:00:14]}  Qc6 {[%clk 0:00:45]} 33. Qh4 {[%clk 0:00:11]}  Rb8 {[%clk 0:00:42]} 34. Qf4 {[%clk 0:00:08]}  Rc8 {[%clk 0:00:42]} 35. Re7 {[%clk 0:00:08]}  Qg6 {[%clk 0:00:38]} 36. Qg5 {[%clk 0:00:08]}  Qd3 {[%clk 0:00:34]} 37. Kh2 {[%clk 0:00:06]}  Qf3 {[%clk 0:00:28]} 38. Qe3 {[%clk 0:00:05]}  Qh5+ {[%clk 0:00:28]} 39. Kg2 {[%clk 0:00:04]}  Rc6 {[%clk 0:00:22]} 40. Re8+ {[%clk 0:00:05]}  Kh7 {[%clk 0:00:22]} 41. Qf3 {[%clk 0:00:04]}  Bf1+ {[%clk 0:00:21]} 0-1


[Site "https://www.chess.com"]

[Event "Titled Tuesday Blitz October 5 2021"]
[White "Florescu, Codrut-Constantin"]
[Black "Sorokin, Aleksey"]
[WhiteFideId "1202200"]
[BlackFideId "24176460"]
[WhiteElo "2243"]
[BlackElo "2476"]
[Result "1-0"]
[Round "03"]
[TimeControl "180+1"]
[Date "2021.10.05"]
[WhiteClock "0:00:09"]
[BlackClock "0:00:04"]

1. d4 {[%clk 0:03:00]}  Nf6 {[%clk 0:02:59]} 2. c4 {[%clk 0:03:00]}  g6 {[%clk 0:02:54]} 3. Nc3 {[%clk 0:03:00]}  d5 {[%clk 0:02:54]} 4. cxd5 {[%clk 0:02:59]}  Nxd5 {[%clk 0:02:54]} 5. e4 {[%clk 0:03:00]}  Nxc3 {[%clk 0:02:53]} 6. bxc3 {[%clk 0:03:01]}  Bg7 {[%clk 0:02:52]} 7. Bc4 {[%clk 0:03:01]}  c5 {[%clk 0:02:51]} 8. Ne2 {[%clk 0:03:00]}  O-O {[%clk 0:02:51]} 9. O-O {[%clk 0:03:00]}  Nc6 {[%clk 0:02:51]} 10. Be3 {[%clk 0:02:59]}  Bg4 {[%clk 0:02:48]} 11. f3 {[%clk 0:02:59]}  Na5 {[%clk 0:02:45]} 12. Bxf7+ {[%clk 0:02:59]}  Rxf7 {[%clk 0:02:45]} 13. fxg4 {[%clk 0:03:00]}  Rxf1+ {[%clk 0:02:45]} 14. Kxf1 {[%clk 0:02:59]}  Qd6 {[%clk 0:02:44]} 15. e5 {[%clk 0:02:58]}  Qe6 {[%clk 0:02:41]} 16. h3 {[%clk 0:02:55]}  Nc4 {[%clk 0:02:36]} 17. Bf2 {[%clk 0:02:54]}  Rf8 {[%clk 0:01:57]} 18. Kg1 {[%clk 0:02:53]}  b5 {[%clk 0:01:55]} 19. Qd3 {[%clk 0:02:45]}  Bh6 {[%clk 0:01:55]} 20. Ng3 {[%clk 0:02:25]}  Qf7 {[%clk 0:01:45]} 21. Ne4 {[%clk 0:02:21]}  Nd2 {[%clk 0:01:38]} 22. Bg3 {[%clk 0:01:59]}  Nxe4 {[%clk 0:01:35]} 23. Qxe4 {[%clk 0:01:58]}  Qc4 {[%clk 0:01:36]} 24. Rb1 {[%clk 0:01:22]}  Qxc3 {[%clk 0:01:24]} 25. Bf2 {[%clk 0:01:09]}  Qd2 {[%clk 0:00:53]} 26. Rf1 {[%clk 0:01:02]}  c4 {[%clk 0:00:42]} 27. Qd5+ {[%clk 0:00:31]}  Kh8 {[%clk 0:00:42]} 28. e6 {[%clk 0:00:22]}  Rxf2 {[%clk 0:00:29]} 29. Rxf2 {[%clk 0:00:19]}  Qe1+ {[%clk 0:00:29]} 30. Rf1 {[%clk 0:00:16]}  Be3+ {[%clk 0:00:29]} 31. Kh2 {[%clk 0:00:16]}  Qxf1 {[%clk 0:00:28]} 32. Qe5+ {[%clk 0:00:16]}  Kg8 {[%clk 0:00:27]} 33. Qxe3 {[%clk 0:00:16]}  Qf6 {[%clk 0:00:23]} 34. d5 {[%clk 0:00:16]}  c3 {[%clk 0:00:22]} 35. g5 {[%clk 0:00:15]}  Qg7 {[%clk 0:00:17]} 36. d6 {[%clk 0:00:14]}  c2 {[%clk 0:00:14]} 37. d7 {[%clk 0:00:12]}  Qf8 {[%clk 0:00:15]} 38. Qc3 {[%clk 0:00:12]}  Qb8+ {[%clk 0:00:14]} 39. g3 {[%clk 0:00:12]}  Qb6 {[%clk 0:00:07]} 40. Qxc2 {[%clk 0:00:10]}  h6 {[%clk 0:00:05]} 41. Qd2 {[%clk 0:00:10]}  Qd8 {[%clk 0:00:04]} 42. gxh6 {[%clk 0:00:10]}  Kh7 {[%clk 0:00:04]} 43. Qd4 {[%clk 0:00:09]}  a5 {[%clk 0:00:04]} 44. Qg7# {[%clk 0:00:09]} 1-0


[Site "https://www.chess.com"]